bitfinex-derivatives/quotes_SOLF0:USTF0_20241011
["timestamp","ask_amount","ask_price","bid_price","bid_amount"]
[1728653749593,35.44,143.52,143.45,0.12502]
[1728653750292,3.4866,143.48,143.45,0.12502]
[1728653750491,26.82,143.47,143.45,0.12502]
[1728653751289,3.4868,143.46,143.45,0.12502]
[1728653752499,35.44,143.47,143.39,3.61332]
[1728653752688,3.4877,143.43,143.39,0.12502]
[1728653752887,26.82,143.44,143.39,0.12502]
[1728653753097,1.2923,143.46,143.39,0.12502]
[1728653753098,26.82,143.42,143.39,0.12502]
[1728653753302,3.4883,143.4,143.39,0.12502]
[1728653753490,26.82,143.42,143.39,0.12502]
[1728653755098,3.4882,143.41,143.39,0.12502]
[1728653755401,35.44,143.42,143.39,0.12502]
[1728653755586,3.4883,143.4,143.39,0.12502]
[1728653756195,3.4894,143.36,143.33,0.12502]
[1728653756493,26.82,143.4,143.33,0.12502]
[1728653756694,3.4888,143.38,143.33,0.12502]
[1728653757001,35.44,143.37,143.33,0.12502]
[1728653758499,3.4897,143.34,143.33,0.12502]
[1728653759491,35.44,143.37,143.33,0.12502]
[1728653760203,26.82,143.37,143.33,0.12502]
[1728653760899,12.3583,143.39,143.33,0.12502]
[1728653761095,1.0,143.39,143.33,0.12502]
[1728653761298,26.82,143.42,143.38,3.4887]
[1728653761589,8.62,143.43,143.34,1.3974]
[1728653761799,8.62,143.43,143.34,2.7945]
[1728653761998,4.0547,143.44,143.34,2.7945]
[1728653762200,12.6747,143.44,143.34,4.1282]
[1728653762601,3.4876,143.43,143.39,3.4884]
[1728653762904,10.0091,143.44,143.34,4.1282]
[1728653763105,3.4878,143.42,143.38,3.4886]
[1728653763790,0.12502,143.45,143.35,35.44]
[1728653763992,26.94502,143.45,143.35,8.62]
[1728653764190,26.82,143.43,143.35,8.62]
[1728653764395,3.4878,143.42,143.38,3.4886]
[1728653765405,26.82,143.44,143.35,8.62]
[1728653765600,3.4877,143.43,143.4,3.4882]
[1728653765796,26.82,143.44,143.35,8.62]
[1728653765998,3.4878,143.43,143.39,3.4883]
[1728653766193,26.82,143.44,143.35,8.62]
[1728653766597,0.12502,143.45,143.35,8.62]
[1728653767302,3.4878,143.42,143.38,3.4885]
[1728653767501,3.4878,143.42,143.35,8.62]
[1728653767696,0.12502,143.45,143.35,8.62]
[1728653769805,3.4876,143.43,143.4,3.4881]
[1728653770206,0.12502,143.45,143.35,8.62]
[1728653770903,3.4881,143.41,143.38,3.4888]
[1728653771601,26.82,143.44,143.35,8.62]
[1728653772202,3.4883,143.4,143.37,3.4889]
[1728653772605,3.4881,143.41,143.38,3.4886]
[1728653772805,26.82,143.44,143.38,3.4886]
[1728653773000,35.06,143.44,143.34,4.1282]
[1728653773205,0.12502,143.45,143.36,26.82]
[1728653774405,0.12502,143.45,143.44,3.4873]
[1728653774707,26.94502,143.51,143.41,8.24]
[1728653774907,26.94502,143.51,143.42,1.4156]
[1728653775099,3.4865,143.48,143.45,3.4869]
[1728653775298,26.82,143.48,143.42,1.4156]
[1728653775710,3.487,143.46,143.43,3.4874]
[1728653776210,26.82,143.48,143.43,3.4874]
[1728653776411,26.82,143.48,143.43,3.4875]
[1728653776815,26.82,143.48,143.42,1.4156]
[1728653777113,26.94502,143.51,143.42,1.4156]
[1728653777514,3.4865,143.48,143.45,3.4871]
[1728653777914,26.94502,143.51,143.45,3.4871]
[1728653778515,26.94502,143.51,143.44,3.4872]
[1728653778813,3.4867,143.47,143.44,3.4872]
[1728653779014,26.82,143.49,143.42,4.9032]
[1728653779217,3.4872,143.45,143.42,4.9032]
[1728653779417,26.82,143.49,143.39,0.12502]
[1728653779613,3.4872,143.45,143.42,3.4877]
[1728653780019,9.2548,143.48,143.39,0.12502]
[1728653780216,3.4868,143.47,143.44,3.4872]
[1728653780717,9.2548,143.48,143.39,0.12502]
[1728653781017,26.94502,143.51,143.39,33.92192]
[1728653781414,3.4864,143.48,143.45,3.4869]
[1728653781614,26.94502,143.51,143.39,26.94502]
[1728653781824,3.4864,143.48,143.46,3.4868]
[1728653782024,26.94502,143.51,143.46,3.4868]
[1728653782232,26.94502,143.51,143.39,26.94502]
[1728653782429,3.4861,143.49,143.46,3.4867]
[1728653782828,3.4861,143.49,143.39,30.40008185]
[1728653783029,26.94502,143.51,143.39,30.40008185]
[1728653783224,26.94502,143.51,143.41,26.82]
[1728653783225,3.4859,143.5,143.41,26.82]
[1728653783428,0.12502,143.51,143.42,9.1977]
[1728653783630,3.4864,143.48,143.42,9.1977]
[1728653783833,0.12502,143.51,143.42,9.1977]
[1728653784132,3.4861,143.49,143.47,3.4864]
[1728653785633,26.94502,143.51,143.45,3.4869]
[1728653786134,3.4867,143.47,143.45,3.487]
[1728653786634,26.94502,143.51,143.43,1.3962]
[1728653787229,3.4867,143.47,143.45,3.487]
[1728653787437,26.94502,143.51,143.43,1.3962]
[1728653787831,3.4863,143.49,143.46,3.4867]
[1728653788138,26.94502,143.51,143.43,1.3962]
[1728653788525,26.94502,143.51,143.42,7.84]
[1728653788836,26.82,143.48,143.42,7.84]
[1728653789136,3.4871,143.45,143.42,3.4876]
[1728653789433,3.58764547,143.51,143.39,1.47702]
[1728653789434,26.82,143.46,143.39,1.47702]
[1728653789633,3.4874,143.44,143.41,3.4879]
[1728653790027,26.82,143.46,143.41,3.4879]
[1728653790228,3.4872,143.45,143.41,3.4879]
[1728653790430,26.82,143.46,143.41,3.4879]
[1728653790834,3.4875,143.44,143.41,3.4879]
[1728653791234,3.4875,143.44,143.39,1.47702]
[1728653791434,3.4875,143.44,143.42,3.4878]
[1728653792132,1.4079,143.47,143.39,1.47702]
[1728653792535,34.66,143.5,143.39,31.79688647]
[1728653792740,3.4866,143.47,143.44,3.4872]
[1728653794531,34.66,143.5,143.39,28.29702]
[1728653794843,3.487,143.46,143.43,3.4874]
[1728653795040,34.66,143.5,143.39,31.74116861]
[1728653795349,34.66,143.5,143.44,3.4873]
[1728653796043,3.4868,143.46,143.44,3.4873]
[1728653796336,34.66,143.5,143.39,1.47702]
[1728653796541,3.4872,143.45,143.39,1.47702]
[1728653796844,7.84,143.5,143.39,31.82938177]
[1728653797037,1.45692,143.51,143.41,26.82]
[1728653797240,1.45692,143.51,143.42,8.8454]
[1728653797541,1.45692,143.51,143.48,3.4862]
[1728653797842,1.45692,143.51,143.46,3.4866]
[1728653798048,1.45692,143.51,143.43,1.3371]
[1728653798842,3.4859,143.5,143.43,1.3371]
[1728653799037,3.4859,143.5,143.47,3.4864]
[1728653800243,3.487,143.46,143.43,3.4875]
[1728653800438,28.27692,143.51,143.42,8.8454]
[1728653801140,1.45692,143.51,143.42,35.6654]
[1728653801844,3.4861,143.5,143.47,3.4864]
[1728653802233,1.45692,143.51,143.42,35.6654]
[1728653802439,28.27692,143.51,143.46,3.4868]
[1728653803241,3.4862,143.49,143.46,3.4868]
[1728653803647,28.27692,143.51,143.42,35.6654]
[1728653803648,1.45692,143.51,143.42,35.6654]
[1728653803840,0.12502,143.51,143.42,35.6654]
[1728653804150,0.12502,143.51,143.5,3.4858]
[1728653804444,0.12502,143.57,143.51,16.73]
[1728653804741,0.12502,143.57,143.53,3.485]
[1728653805849,3.60922,143.57,143.53,3.485]
[1728653806349,0.12502,143.57,143.5,7.46]
[1728653806648,3.4848,143.55,143.51,3.4854]
[1728653806941,0.12502,143.57,143.51,3.4854]
[1728653807246,3.4852,143.53,143.5,3.4858]
[1728653807743,26.78,143.55,143.48,7.46]
[1728653808139,3.4858,143.51,143.48,3.4863]
[1728653808346,26.78,143.53,143.45,0.12502]
[1728653809351,1.4043,143.54,143.45,0.12502]
[1728653809649,3.4856,143.52,143.49,3.4859]
[1728653809957,3.4853,143.53,143.49,3.4859]
[1728653810148,1.4043,143.54,143.45,0.12502]
[1728653810545,3.4854,143.52,143.45,0.12502]
[1728653810846,3.4854,143.52,143.47,3.4865]
[1728653811054,3.4854,143.52,143.45,0.12502]
[1728653811349,1.4043,143.54,143.45,0.12502]
[1728653811550,26.78,143.53,143.45,0.12502]
[1728653812250,3.4865,143.48,143.45,3.61202]
[1728653812745,3.4865,143.48,143.45,0.12502]
[1728653812947,3.4868,143.46,143.45,0.12502]
[1728653814646,3.4868,143.46,143.39,0.12502]
[1728653814647,3.4877,143.43,143.39,7.58502]
[1728653815053,3.4877,143.43,143.4,3.4881]
[1728653815354,1.3237,143.47,143.39,7.58502]
[1728653815658,34.24,143.46,143.39,0.12502]
[1728653815848,3.4882,143.41,143.39,0.12502]
[1728653816249,26.78,143.44,143.39,0.12502]
[1728653816250,28.1612,143.44,143.39,0.12502]
[1728653816452,3.4883,143.4,143.39,0.12502]
[1728653816748,6.29543623,143.43,143.39,0.12502]
[1728653817146,3.4878,143.42,143.39,0.12502]
[1728653817346,6.29543623,143.43,143.39,0.12502]
[1728653817547,28.1612,143.44,143.39,0.12502]
[1728653817749,3.4883,143.4,143.39,0.12502]
[1728653819556,6.29627624,143.43,143.39,0.12502]
[1728653820663,28.1612,143.44,143.39,0.12502]
[1728653820865,3.4883,143.4,143.39,0.12502]
[1728653821360,6.29612237,143.43,143.39,0.12502]
[1728653821557,6.29612237,143.45,143.39,7.58502]
[1728653821754,6.29612237,143.46,143.39,7.58502]
[1728653821951,6.29612237,143.45,143.4,3.4881]
[1728653822163,6.29612237,143.45,143.39,7.58502]
[1728653822350,9.78302237,143.46,143.39,7.58502]
[1728653822552,3.4869,143.46,143.39,7.58502]
[1728653822757,3.4871,143.45,143.39,7.58502]
[1728653822969,1.3237,143.47,143.39,7.58502]
[1728653823159,1.3237,143.47,143.42,3.4875]
[1728653823461,3.487,143.46,143.42,3.4875]
[1728653823652,3.487,143.46,143.39,7.58502]
[1728653823963,1.3237,143.47,143.39,7.58502]
[1728653824355,3.487,143.46,143.39,7.58502]
[1728653824555,1.3237,143.47,143.39,7.58502]
[1728653825266,3.4872,143.45,143.42,3.4876]
[1728653826370,3.4874,143.44,143.41,3.4879]
[1728653826559,1.3237,143.47,143.39,7.58502]
[1728653826760,26.78,143.46,143.39,7.58502]
[1728653827063,26.78,143.46,143.39,0.12502]
[1728653827468,3.4876,143.43,143.4,3.4882]
[1728653827661,3.4876,143.43,143.39,0.12502]
[1728653828169,3.4876,143.43,143.4,3.4883]
[1728653828469,3.4872,143.45,143.39,0.12502]
[1728653828671,26.78,143.46,143.39,0.12502]
[1728653828868,3.4874,143.44,143.41,3.4879]
[1728653829063,26.78,143.46,143.39,0.12502]
[1728653829266,1.3237,143.47,143.39,0.12502]
[1728653830072,3.4876,143.43,143.39,0.12502]
[1728653830273,26.78,143.46,143.39,0.12502]
[1728653830564,3.4883,143.4,143.39,0.12502]
[1728653832466,20.2383,143.4,143.39,0.12502]
[1728653832862,3.4891,143.37,143.34,3.4896]
[1728653833064,3.4891,143.37,143.33,0.12502]
[1728653833374,16.75,143.38,143.33,0.12502]
[1728653833768,3.4893,143.36,143.33,0.12502]
[1728653833969,16.75,143.38,143.33,0.12502]
[1728653834274,18.1162,143.41,143.33,0.12502]
[1728653834472,3.4887,143.39,143.35,3.4894]
[1728653834968,3.4887,143.39,143.33,0.12502]
[1728653835164,1.3662,143.41,143.33,0.12502]
[1728653835371,28.1662,143.41,143.33,0.12502]
[1728653835769,28.1662,143.41,143.33,3.61472]
[1728653835970,3.4893,143.36,143.33,3.61472]
[1728653837472,3.4893,143.36,143.34,3.4897]
[1728653838072,3.4893,143.36,143.33,3.61492]
[1728653838270,3.4895,143.35,143.33,0.12502]
[1728653838473,26.8,143.38,143.33,0.12502]
[1728653838672,26.8,143.36,143.33,0.12502]
[1728653838877,1.4112,143.35,143.33,0.12502]
[1728653839380,1.4112,143.35,143.27,7.38502]
[1728653839877,26.8,143.32,143.27,0.12502]
[1728653840073,26.8,143.29,143.27,0.12502]
[1728653840378,3.4912,143.28,143.27,0.12502]
[1728653840564,26.8,143.29,143.27,0.12502]
[1728653840771,7.26,143.3,143.27,0.12502]
[1728653840968,7.26,143.3,143.27,3.61632]
[1728653841173,1.3353,143.31,143.27,3.61632]
[1728653841374,7.26,143.33,143.27,0.12502]
[1728653841578,7.26,143.33,143.29,3.4908]
[1728653841881,26.8,143.34,143.27,0.12502]
[1728653842080,3.4904,143.32,143.28,3.4911]
[1728653842275,26.8,143.34,143.27,0.12502]
[1728653842675,26.8,143.34,143.29,3.4909]
[1728653843484,26.8,143.34,143.27,0.12502]
[1728653843485,26.8,143.34,143.28,3.491]
[1728653843675,26.8,143.34,143.27,0.12502]
[1728653844769,30.2899,143.34,143.3,3.4906]
[1728653844974,26.8,143.34,143.27,0.12502]
[1728653845485,3.4906,143.31,143.27,0.12502]
[1728653845685,26.8,143.34,143.27,0.12502]
[1728653845885,3.4905,143.31,143.28,3.491]
[1728653846392,3.4902,143.33,143.3,3.4906]
[1728653847087,9.9905,143.35,143.27,0.12502]
[1728653847490,9.9905,143.35,143.3,3.4906]
[1728653847491,3.49,143.34,143.3,3.4906]
[1728653847691,9.9905,143.35,143.3,3.4906]
[1728653847886,1.4112,143.35,143.28,7.28]
[1728653848095,1.3481,143.41,143.28,7.28]
[1728653848395,1.3481,143.41,143.31,26.8]
[1728653848596,3.61362,143.39,143.36,3.4891]
[1728653848991,0.12502,143.39,143.32,7.28]
[1728653849784,3.61372,143.39,143.32,7.28]
[1728653850197,0.12502,143.39,143.32,7.28]
[1728653850396,3.61362,143.39,143.32,7.28]
[1728653850584,0.12502,143.39,143.32,9.9145]
[1728653850989,0.12502,143.39,143.34,3.4897]
[1728653851189,0.12502,143.39,143.32,9.9145]
[1728653851789,0.12502,143.39,143.38,3.4888]
[1728653852798,0.12502,143.39,143.34,3.4897]
[1728653852990,0.12502,143.39,143.32,11.2724]
[1728653853186,3.4889,143.38,143.32,11.2724]
[1728653853393,3.4889,143.38,143.35,3.4893]
[1728653853594,3.4889,143.38,143.32,11.2724]
[1728653854099,3.61362,143.39,143.37,3.4889]
[1728653854298,0.12502,143.39,143.37,3.4889]
[1728653854607,0.12502,143.39,143.38,3.4888]
[1728653855806,0.12502,143.45,143.36,34.06]
[1728653855993,3.4877,143.43,143.36,34.06]
[1728653856191,0.12502,143.45,143.39,3.4883]
[1728653856595,0.12502,143.45,143.36,7.26]
[1728653856798,16.75,143.44,143.38,3.4886]
[1728653857006,3.4877,143.43,143.38,3.4886]
[1728653857201,16.75,143.44,143.36,7.26]
[1728653857401,16.75,143.42,143.36,7.14]
[1728653857604,3.4882,143.41,143.36,7.14]
[1728653858009,16.75,143.4,143.36,3.4891]
[1728653858202,16.75,143.42,143.35,7.14]
[1728653859003,3.4883,143.4,143.37,3.4888]
[1728653860207,3.4883,143.4,143.35,7.14]
[1728653860606,3.4886,143.39,143.35,7.14]
[1728653860805,16.75,143.42,143.37,3.489]
[1728653861308,16.75,143.42,143.4,3.4881]
[1728653861504,18.1624,143.44,143.35,7.14]
[1728653862009,3.4881,143.41,143.38,3.4886]
[1728653862808,3.4879,143.42,143.39,3.4884]
[1728653863002,18.1624,143.44,143.35,7.14]
[1728653863204,1.4124,143.44,143.36,16.75]
[1728653863410,3.61212,143.45,143.42,3.4876]
[1728653863712,0.12502,143.45,143.36,16.75]
[1728653863907,16.75,143.41,143.35,3.4894]
[1728653864209,16.75,143.41,143.34,7.14]
[1728653864403,16.75,143.43,143.35,16.75]
[1728653864606,1.3434,143.44,143.35,16.75]
[1728653865011,3.4879,143.42,143.39,3.4884]
[1728653865511,1.3434,143.44,143.35,16.75]
[1728653865804,3.4876,143.43,143.4,3.4881]
[1728653866513,3.4879,143.42,143.39,3.4884]
[1728653867204,3.4882,143.41,143.38,10.6286]
[1728653868317,3.4884,143.4,143.38,7.14]
[1728653869211,3.4884,143.4,143.38,10.6287]
[1728653871117,16.87502,143.45,143.38,7.14]
[1728653871413,0.12502,143.45,143.4,16.75]
[1728653872017,3.61212,143.45,143.43,3.4874]
[1728653872617,0.12502,143.45,143.43,3.4874]
[1728653872811,0.12502,143.45,143.4,16.75]
[1728653873512,0.12502,143.45,143.44,3.4873]
[1728653873712,0.12502,143.45,143.4,16.75]
[1728653875016,3.61212,143.45,143.4,16.75]
[1728653876522,3.61212,143.45,143.43,3.4875]
[1728653876723,0.12502,143.45,143.43,3.4875]
[1728653876918,0.12502,143.45,143.4,16.75]
[1728653877123,0.12502,143.45,143.41,3.4879]
[1728653877321,3.4875,143.43,143.41,3.4879]
[1728653878727,3.4875,143.43,143.38,23.89]
[1728653878728,16.75,143.43,143.38,3.4886]
[1728653879232,3.4883,143.4,143.38,3.4886]
[1728653879422,16.75,143.42,143.37,3.4889]
[1728653880218,3.4886,143.39,143.37,3.4889]
[1728653880420,16.75,143.42,143.36,3.4891]
[1728653880720,16.75,143.42,143.34,26.6928]
[1728653881227,3.4884,143.4,143.34,26.6928]
[1728653881616,1.3866,143.43,143.35,16.75]
[1728653881816,0.12502,143.45,143.37,16.75]
[1728653882029,0.12502,143.45,143.39,16.75]
[1728653882424,0.12502,143.45,143.43,3.4875]
[1728653882725,0.12502,143.45,143.39,16.75]
[1728653883519,3.61222,143.45,143.39,16.75]
[1728653883931,3.61222,143.45,143.43,3.4874]
[1728653884128,0.12502,143.45,143.43,3.4874]
[1728653884526,0.12502,143.45,143.42,3.4877]
[1728653884831,0.12502,143.45,143.38,7.14]
[1728653885018,0.12502,143.45,143.4,3.4882]
[1728653885421,3.4877,143.43,143.38,7.14]
[1728653885627,3.4877,143.43,143.39,7.14]
[1728653885929,0.12502,143.45,143.39,7.14]
[1728653886128,3.4874,143.44,143.41,3.4878]
[1728653886330,0.12502,143.45,143.41,3.4878]
[1728653886527,0.12502,143.45,143.39,7.14]
[1728653886528,16.87502,143.45,143.39,7.14]
[1728653886730,16.75,143.43,143.37,6.86]
[1728653887529,3.4882,143.41,143.38,3.4886]
[1728653887926,3.4879,143.42,143.38,3.4886]
[1728653888121,16.75,143.43,143.36,6.86]
[1728653888327,16.75,143.43,143.37,3.4889]
[1728653888731,16.75,143.41,143.36,3.4892]
[1728653889430,3.4889,143.38,143.35,3.4894]
[1728653890833,3.4889,143.38,143.34,6.86]
[1728653891132,16.75,143.39,143.33,6.98502]
[1728653891336,3.489,143.37,143.33,6.98502]
[1728653892136,16.75,143.39,143.34,3.4896]
[1728653892137,3.4894,143.36,143.34,3.4896]
[1728653892632,16.75,143.39,143.33,0.12502]
[1728653892838,3.4889,143.38,143.35,3.4893]
[1728653893431,3.4889,143.38,143.33,0.12502]
[1728653893634,1.3442,143.4,143.34,16.75]
[1728653894026,1.3442,143.4,143.35,3.4893]
[1728653894332,3.4889,143.38,143.35,3.4893]
[1728653894532,1.3442,143.4,143.33,0.12502]
[1728653894836,1.3442,143.4,143.36,3.489]
[1728653896435,16.75,143.39,143.33,0.12502]
[1728653897035,3.4894,143.36,143.33,3.61482]
[1728653898638,3.4894,143.36,143.33,0.12502]
[1728653898937,3.4896,143.35,143.33,0.12502]
[1728653899335,16.75,143.37,143.33,0.12502]
[1728653899534,16.75,143.35,143.33,0.12502]
[1728653899739,3.4897,143.34,143.33,0.12502]
[1728653899934,16.75,143.34,143.26,1.3109]
[1728653900133,18.1714,143.34,143.27,6.98502]
[1728653900337,18.1714,143.34,143.27,0.12502]
[1728653900642,18.1714,143.34,143.27,3.61632]
[1728653900840,18.1714,143.34,143.27,0.12502]
[1728653901234,18.1714,143.34,143.29,3.4909]
[1728653901435,3.4904,143.32,143.29,3.4909]
[1728653901636,18.1714,143.34,143.28,3.4911]
[1728653901938,3.4909,143.3,143.27,0.12502]
[1728653902245,18.1714,143.34,143.27,0.12502]
[1728653902246,16.75,143.32,143.27,3.61632]
[1728653902546,16.75,143.32,143.27,0.12502]
[1728653903150,16.75,143.28,143.21,0.12502]
[1728653903337,16.75,143.26,143.21,0.12502]
[1728653903635,16.75,143.24,143.21,0.12502]
[1728653903839,3.4927,143.22,143.21,0.12502]
[1728653904432,16.75,143.24,143.21,0.12502]
[1728653904647,16.75,143.26,143.21,0.12502]
[1728653905248,3.4923,143.24,143.21,0.12502]
[1728653905447,16.75,143.24,143.21,0.12502]
[1728653906437,3.4924,143.24,143.21,0.12502]
[1728653906939,3.4927,143.22,143.21,0.12502]
[1728653907348,6.86,143.25,143.21,0.12502]
[1728653907638,3.4923,143.24,143.21,3.61782]
[1728653907845,6.86,143.25,143.21,0.12502]
[1728653908343,3.4923,143.24,143.21,3.61782]
[1728653908741,3.4923,143.24,143.21,0.12502]
[1728653908939,1.378,143.26,143.21,0.12502]
[1728653909940,1.3015,143.27,143.21,0.12502]
[1728653910237,6.86,143.28,143.26,3.4917]
[1728653910443,6.86,143.31,143.21,0.12502]
[1728653910639,6.86,143.31,143.22,26.82]
[1728653911350,3.4908,143.3,143.27,3.4913]
[1728653911661,26.82,143.3,143.21,2.76462]
[1728653911842,3.4921,143.25,143.21,3.61782]
[1728653912147,26.82,143.28,143.21,0.12502]
[1728653912744,3.4915,143.27,143.23,3.4923]
[1728653912941,26.82,143.28,143.23,3.4923]
[1728653913345,1.3056,143.32,143.3,3.4907]
[1728653913541,1.3056,143.32,143.24,28.2454]
[1728653913946,1.3056,143.32,143.3,3.4906]
[1728653914143,1.3056,143.32,143.24,28.2454]
[1728653914644,1.3056,143.32,143.3,3.4905]
[1728653915047,1.3056,143.32,143.28,3.491]
[1728653915048,4.796,143.32,143.28,3.491]
[1728653915342,1.3056,143.32,143.24,1.4254]
[1728653915548,3.4906,143.31,143.28,3.4911]
[1728653916153,1.3056,143.32,143.29,3.4909]
[1728653916154,4.7959,143.32,143.29,3.4909]
[1728653916545,1.3056,143.32,143.24,1.4254]
[1728653916850,1.3056,143.32,143.3,3.4906]
[1728653917254,0.12502,143.33,143.31,3.4905]
[1728653921145,0.12502,143.33,143.27,6.88]
[1728653921347,0.12502,143.33,143.32,3.4902]
[1728653921747,0.12502,143.33,143.27,6.88]
[1728653922553,0.12502,143.33,143.3,3.4906]
[1728653922749,26.82,143.32,143.24,1.4254]
[1728653922950,26.82,143.32,143.24,8.3054]
[1728653923152,26.82,143.32,143.27,3.4914]
[1728653923352,26.82,143.32,143.24,8.3054]
[1728653923855,26.82,143.29,143.17,1.4171]
[1728653924061,26.82,143.29,143.21,7.00502]
[1728653924858,26.82,143.29,143.24,3.492]
[1728653924859,3.4916,143.27,143.24,3.492]
[1728653925450,7.00502,143.33,143.21,7.00502]
[1728653925656,26.82,143.31,143.21,7.00502]
[1728653926049,26.82,143.29,143.21,7.00502]
[1728653926250,3.4916,143.27,143.24,3.492]
[1728653926450,26.82,143.29,143.24,3.492]
[1728653926754,3.4918,143.26,143.21,0.12502]
[1728653926956,28.2093,143.29,143.21,0.12502]
[1728653926957,35.0893,143.29,143.21,0.12502]
[1728653927362,1.3893,143.29,143.21,0.12502]
[1728653927952,3.4916,143.27,143.21,0.12502]
[1728653928361,3.4914,143.28,143.25,3.4918]
[1728653928658,1.3893,143.29,143.21,0.12502]
[1728653928952,3.4916,143.27,143.24,3.492]
[1728653929558,28.2093,143.29,143.21,0.12502]
[1728653929859,35.0893,143.29,143.21,0.12502]
[1728653930158,26.82,143.26,143.21,3.61772]
[1728653930848,26.82,143.26,143.21,0.12502]
[1728653931552,26.82,143.26,143.21,3.61782]
[1728653932357,26.82,143.22,143.15,0.12502]
[1728653932565,10.5318,143.21,143.15,0.12502]
[1728653933967,3.4939,143.17,143.15,0.12502]
[1728653934259,10.5318,143.21,143.15,0.12502]
[1728653934658,3.4935,143.19,143.15,3.61932]
[1728653934860,10.5318,143.21,143.15,3.61932]
[1728653935560,26.82,143.16,143.09,3.62072]
[1728653935863,3.4947,143.14,143.09,0.12502]
[1728653936053,9.2226,143.15,143.11,3.4953]
[1728653936454,26.82,143.13,143.03,0.12502]
[1728653936852,1.4078,143.14,143.03,26.94502]
[1728653937053,3.4955,143.11,143.07,3.4961]
[1728653937264,34.64,143.13,143.03,0.12502]
[1728653937661,3.4953,143.12,143.08,3.496]
[1728653938261,3.4954,143.11,143.08,3.496]
[1728653938463,1.4078,143.14,143.03,0.12502]
[1728653938659,1.4078,143.14,143.03,26.94502]
[1728653938864,28.34762,143.15,143.03,26.94502]
[1728653938865,1.52762,143.15,143.09,3.4956]
[1728653939059,1.52762,143.15,143.06,2.773]
[1728653939272,5.02202,143.15,143.06,2.773]
[1728653939973,1.52762,143.15,143.11,3.4952]
[1728653940160,3.4946,143.14,143.11,3.4952]
[1728653940359,1.52762,143.15,143.06,2.773]
[1728653940761,26.82,143.12,143.03,0.12502]
[1728653940963,7.82,143.13,143.1,3.4954]
[1728653941156,7.82,143.13,143.03,0.12502]
[1728653941360,28.34762,143.15,143.03,0.12502]
[1728653941662,7.82,143.14,143.03,0.12502]
[1728653942163,7.82,143.14,143.03,26.94502]
[1728653942367,11.3147,143.14,143.03,26.94502]
[1728653943360,28.34762,143.15,143.03,26.94502]
[1728653943361,1.52762,143.15,143.03,26.94502]
[1728653943562,0.12502,143.15,143.06,26.82]
[1728653943759,0.12502,143.15,143.09,3.4957]
[1728653943968,0.12502,143.15,143.07,9.24]
[1728653944168,0.12502,143.15,143.08,1.3421]
[1728653944362,0.12502,143.15,143.14,3.4946]
[1728653946166,7.94502,143.21,143.11,7.82]
[1728653946167,0.12502,143.21,143.11,7.82]
[1728653946370,0.12502,143.21,143.13,26.82]
[1728653946867,0.12502,143.21,143.19,3.4933]
[1728653947171,0.12502,143.21,143.13,26.82]
[1728653947365,3.61802,143.21,143.18,3.4935]
[1728653947870,3.4933,143.2,143.18,3.4936]